bitfinex/quotes_BTCUSD_20220202
["timestamp","ask_amount","ask_price","bid_price","bid_amount"]
[1643804170212,0.00374985,38711.0,38708.0,0.08]
[1643804171218,0.00231648,38711.0,38708.0,0.08]
[1643804171465,0.32906707,38710.0,38708.0,0.08]
[1643804171862,0.05,38710.0,38708.0,0.08]
[1643804172064,0.32906707,38710.0,38708.0,0.08]
[1643804172262,0.37906707,38710.0,38708.0,0.08]
[1643804173259,0.37906707,38710.0,38708.0,0.07938176]
[1643804173662,0.05,38710.0,38709.0,0.07938176]
[1643804173860,0.32710146,38711.0,38709.0,0.07938176]
[1643804174062,0.45,38710.0,38709.0,0.07938176]
[1643804174664,0.7,38710.0,38709.0,0.07785816]
[1643804175308,0.7,38710.0,38701.0,0.30933848]
[1643804175507,1.02893604,38710.0,38701.0,0.05]
[1643804175908,1.02893604,38710.0,38702.0,0.2289733]
[1643804176107,0.00141957,38707.0,38702.0,0.29356489]
[1643804176308,0.00141957,38707.0,38704.0,0.23306017]
[1643804176509,0.00141957,38707.0,38705.0,0.22558054]
[1643804176808,0.00141957,38707.0,38704.0,0.23306017]
[1643804177213,0.45,38710.0,38704.0,0.23306017]
[1643804177409,0.66813684,38710.0,38704.0,0.23306017]
[1643804177811,0.66813684,38710.0,38702.0,0.06459159]
[1643804178008,0.45,38710.0,38703.0,0.22645881]
[1643804178608,0.45,38710.0,38702.0,0.08339468]
[1643804179062,0.73277825,38710.0,38703.0,0.26590114]
[1643804179461,0.4499366,38710.0,38703.0,0.26590114]
[1643804181064,0.00142213,38708.0,38702.0,0.19376876]
[1643804181264,0.00142213,38708.0,38701.0,0.05]
[1643804181265,0.09916225,38707.0,38701.0,0.05]
[1643804182267,0.00142213,38706.0,38701.0,0.05]
[1643804182469,0.00142213,38706.0,38702.0,0.06459159]
[1643804183110,0.09916225,38707.0,38702.0,0.06459159]
[1643804183310,0.00142213,38706.0,38702.0,0.06459159]
[1643804184312,0.82887264,38710.0,38702.0,0.06459159]
[1643804184512,0.00142213,38706.0,38702.0,0.06459159]
[1643804185114,0.00142213,38706.0,38701.0,0.05]
[1643804185115,0.07734878,38706.0,38701.0,0.05]
[1643804185312,0.12734878,38706.0,38701.0,0.06811624]
[1643804185512,0.12592665,38706.0,38701.0,0.06811624]
[1643804185711,0.12734876,38706.0,38701.0,0.06811624]
[1643804186114,0.26231155,38705.0,38701.0,0.06811624]
[1643804186375,0.12734876,38706.0,38701.0,0.06811624]
[1643804186562,0.05142211,38706.0,38702.0,0.29188589]
[1643804186764,0.2,38709.0,38702.0,0.29188589]
[1643804186961,0.00142211,38706.0,38702.0,0.29188589]
[1643804187162,0.00142211,38706.0,38702.0,0.0645944]
[1643804187462,0.00142211,38706.0,38702.0,0.01075448]
[1643804187667,0.00142211,38706.0,38702.0,0.23189386]
[1643804187863,0.00231648,38711.0,38702.0,0.23189386]
[1643804188163,0.00142213,38706.0,38702.0,0.01075448]
[1643804188364,0.00142213,38706.0,38701.0,0.17918165]
[1643804189165,0.24949543,38708.0,38701.0,0.17918165]
[1643804189365,0.00142211,38706.0,38701.0,0.17918165]
[1643804190310,0.27254131,38707.0,38701.0,0.17918165]
[1643804190506,0.00142211,38706.0,38701.0,0.17918165]
[1643804191206,0.00142211,38706.0,38701.0,0.05]
[1643804191609,0.1,38706.0,38701.0,0.05]
[1643804191807,0.00142211,38706.0,38701.0,0.05]
[1643804192811,0.27254131,38707.0,38701.0,0.05]
[1643804193008,0.00142211,38706.0,38701.0,0.05]
[1643804193867,0.32254131,38707.0,38701.0,0.05]
[1643804194261,0.00142211,38706.0,38701.0,0.05]
[1643804195161,0.29949543,38708.0,38701.0,0.05]
[1643804195365,0.00142211,38706.0,38701.0,0.05]
[1643804196262,0.34949543,38708.0,38701.0,0.05]
[1643804196661,0.00142211,38706.0,38701.0,0.05]
[1643804197363,0.00142211,38706.0,38701.0,0.06924776]
[1643804197615,0.24949543,38708.0,38701.0,0.06924776]
[1643804197815,0.00142211,38706.0,38701.0,0.06924776]
[1643804198818,0.29949543,38708.0,38701.0,0.06924776]
[1643804199021,0.00142211,38706.0,38701.0,0.06924776]
[1643804199418,0.00142211,38706.0,38701.0,0.09054346]
[1643804199618,0.00142211,38706.0,38701.0,0.0712957]
[1643804200021,0.35410945,38707.0,38701.0,0.0712957]
[1643804200220,0.00142211,38706.0,38701.0,0.0712957]
[1643804201227,0.24949543,38708.0,38701.0,0.0712957]
[1643804201466,0.00142211,38706.0,38701.0,0.0712957]
[1643804201765,0.00142211,38706.0,38701.0,0.05]
[1643804202163,0.00142211,38706.0,38700.0,0.28177263]
[1643804202363,0.61098079,38708.0,38700.0,0.2802764]
[1643804202564,0.00142211,38706.0,38700.0,0.01441523]
[1643804203463,0.56098079,38708.0,38700.0,0.012919]
[1643804203666,0.56098079,38708.0,38701.0,0.21652534]
[1643804203965,0.00142209,38706.0,38701.0,0.21652534]
[1643804204664,0.064598,38710.0,38700.0,0.012919]
[1643804204665,0.39353404,38710.0,38700.0,0.012919]
[1643804204864,0.25542053,38709.0,38700.0,0.01441523]
[1643804205108,0.00142211,38706.0,38704.0,0.00637392]
[1643804205913,0.23803233,38707.0,38704.0,0.00637392]
[1643804206112,0.28945446,38707.0,38704.0,0.00637392]
[1643804206710,0.23945446,38707.0,38704.0,0.00637392]
[1643804207113,0.23803233,38707.0,38704.0,0.00637392]
[1643804207313,0.23945446,38707.0,38704.0,0.00637392]
[1643804208315,0.23803233,38707.0,38704.0,0.00637392]
[1643804208519,0.23945446,38707.0,38704.0,0.00637392]
[1643804208961,0.00142213,38707.0,38704.0,0.00637392]
[1643804209563,0.37893604,38708.0,38704.0,0.00637392]
[1643804209762,0.00142213,38707.0,38704.0,0.00637392]
[1643804210663,0.6388633,38709.0,38704.0,0.00637392]
[1643804210862,0.2677634,38708.0,38704.0,0.00637392]
[1643804211067,0.00142213,38707.0,38704.0,0.00637392]
[1643804211861,0.59669944,38708.0,38704.0,0.00637392]
[1643804212262,0.00142213,38707.0,38704.0,0.00637392]
[1643804212931,0.25305906,38707.0,38704.0,0.00637392]
[1643804213132,0.30163693,38707.0,38704.0,0.00637392]
[1643804213332,0.63747114,38707.0,38704.0,0.00637392]
[1643804214334,0.63604901,38707.0,38704.0,0.00637392]
[1643804214535,0.63747114,38707.0,38704.0,0.00637392]
[1643804215535,0.63604901,38707.0,38704.0,0.00637392]
[1643804215736,0.63747114,38707.0,38704.0,0.00637392]
[1643804216758,0.63604901,38707.0,38700.0,0.012919]
[1643804216959,0.63747114,38707.0,38700.0,0.01441526]
[1643804217558,0.01,38701.0,38700.0,0.01441526]
[1643804217958,0.01,38701.0,38700.0,0.012919]
[1643804218359,0.01,38701.0,38695.0,0.2077372]
[1643804218360,0.75,38700.0,38693.0,0.25838751]
[1643804218563,1.15872298,38699.0,38681.0,0.43464502]
[1643804218764,0.32893604,38697.0,38680.0,0.00010998]
[1643804218965,0.71284762,38695.0,38680.0,0.00010998]
[1643804219161,0.71284762,38695.0,38676.0,0.1]
[1643804219162,0.25702298,38694.0,38676.0,0.1]
[1643804219361,0.55972659,38684.0,38679.0,0.23113896]
[1643804219562,0.05,38685.0,38679.0,0.23113896]
[1643804219764,0.064638,38683.0,38679.0,0.23113896]
[1643804219963,0.05,38686.0,38679.0,0.23113896]
[1643804220225,0.41073343,38691.0,38680.0,0.25702298]
[1643804220624,0.26343886,38690.0,38685.0,0.27512264]
[1643804221021,0.31343886,38690.0,38685.0,0.27512264]
[1643804221223,0.36343886,38690.0,38681.0,0.00089234]
[1643804221423,0.43993887,38690.0,38681.0,0.00078236]
[1643804221628,0.36343886,38690.0,38677.0,0.00010998]
[1643804221824,0.36343886,38690.0,38684.0,0.0007823]
[1643804222026,0.26343886,38690.0,38684.0,0.0007823]
[1643804222227,0.26343886,38690.0,38685.0,0.22163634]
[1643804223127,0.26343886,38690.0,38686.0,0.00078226]
[1643804223328,0.32806786,38690.0,38686.0,0.00078226]
[1643804223528,0.164632,38689.0,38686.0,0.00078226]
[1643804223729,0.116332,38689.0,38686.0,0.00078226]
[1643804223987,0.116332,38689.0,38676.0,0.00010998]
[1643804224189,0.216332,38689.0,38686.0,0.00149526]
[1643804224388,0.29850329,38688.0,38686.0,0.00149526]
[1643804224586,0.930973,38687.0,38686.0,0.00149526]
[1643804224885,1.030973,38687.0,38686.0,0.00149526]
[1643804225085,1.20657519,38687.0,38676.0,0.00010998]
[1643804225286,0.22038249,38679.0,38676.0,0.00010998]
[1643804225489,1.20657519,38687.0,38675.0,0.01826934]
[1643804225490,0.0517,38683.0,38675.0,0.01826934]
[1643804225786,0.0517,38683.0,38675.0,0.00010998]
[1643804226188,0.0517,38683.0,38674.0,0.48775815]
[1643804226487,0.0517,38683.0,38677.0,0.00149543]
[1643804226488,0.27730288,38680.0,38677.0,0.00149543]
[1643804226889,0.2658338,38682.0,38677.0,0.00149543]
[1643804227489,0.0517,38683.0,38675.0,0.00010998]
[1643804227712,0.0517,38683.0,38678.0,0.00149542]
[1643804227913,0.24499955,38681.0,38678.0,0.00149542]
[1643804228712,0.24499955,38681.0,38675.0,0.00010998]
[1643804228912,0.24499955,38681.0,38678.0,0.00149542]
[1643804229317,0.30332404,38683.0,38678.0,0.00149542]
[1643804229916,0.30332404,38683.0,38675.0,0.00010998]
[1643804230115,0.30332404,38683.0,38679.0,0.00078303]
[1643804230116,0.0517,38683.0,38679.0,0.00078303]
[1643804230317,0.32490099,38683.0,38679.0,0.00078303]
[1643804231118,0.32490099,38683.0,38675.0,0.00010998]
[1643804231378,0.32490099,38683.0,38679.0,0.00078302]
[1643804232373,0.45611622,38683.0,38672.0,0.00010998]
[1643804232567,0.37490099,38683.0,38679.0,0.00149667]
[1643804233278,0.37490099,38683.0,38670.0,0.00010998]
[1643804233279,0.1,38681.0,38670.0,0.00010998]
[1643804233472,0.1,38678.0,38670.0,0.00010998]
[1643804233670,0.2547336,38680.0,38652.0,0.01]
[1643804233671,0.12935644,38671.0,38652.0,0.01]
[1643804233874,0.0517,38670.0,38654.0,0.00011548]
[1643804234270,0.31489848,38666.0,38654.0,0.00011548]
[1643804234474,0.116374,38666.0,38657.0,0.27831788]
[1643804234675,0.0517,38666.0,38657.0,0.27831788]
[1643804235117,0.15,38669.0,38657.0,0.27831788]
[1643804235317,0.05,38669.0,38657.0,0.27831788]
[1643804236117,0.05,38669.0,38661.0,0.00149516]
[1643804236618,0.0517,38668.0,38661.0,0.00149516]
[1643804237218,0.0517,38668.0,38656.0,0.00011548]
[1643804237420,0.0517,38668.0,38663.0,0.00149513]
[1643804237619,0.66700827,38664.0,38663.0,0.00149513]
[1643804237820,0.71700827,38664.0,38663.0,0.00149513]
[1643804238421,0.71700827,38664.0,38658.0,0.00011548]
[1643804238622,0.71700827,38664.0,38662.0,0.00149515]
[1643804238870,0.4,38663.0,38662.0,0.00149515]
[1643804239668,0.4,38663.0,38657.0,0.00011548]
[1643804239868,0.05,38663.0,38661.0,0.00149517]
[1643804240067,0.24027519,38666.0,38661.0,0.00149517]
[1643804240068,0.17560219,38666.0,38661.0,0.00149517]
[1643804240265,0.05,38666.0,38661.0,0.00149517]
[1643804240667,0.15,38667.0,38661.0,0.00149517]
[1643804240867,0.22641157,38664.0,38657.0,0.00011548]
[1643804241067,0.27641157,38664.0,38662.0,0.00149515]
[1643804241468,0.05,38664.0,38662.0,0.00149515]
[1643804241669,0.05,38666.0,38662.0,0.00149515]
[1643804241870,0.22560219,38667.0,38662.0,0.00149515]
[1643804242072,0.05,38667.0,38662.0,0.00149514]
[1643804242617,0.33205842,38668.0,38662.0,0.00149514]
[1643804243117,0.24195134,38664.0,38657.0,0.00011548]
[1643804243316,0.29195134,38664.0,38663.0,0.00149512]
[1643804244318,0.54195134,38664.0,38658.0,0.28247472]
[1643804244519,0.54195134,38664.0,38662.0,0.00149515]
[1643804244719,0.49195134,38664.0,38662.0,0.00149515]
[1643804245023,0.24195134,38664.0,38662.0,0.00149515]
[1643804245421,0.064671,38669.0,38662.0,0.00149515]
[1643804245720,0.25289984,38668.0,38661.0,0.00149516]
[1643804245918,0.27573557,38670.0,38661.0,0.00149516]
[1643804246119,0.05,38669.0,38661.0,0.00149516]
[1643804246372,0.27961654,38665.0,38661.0,0.28514195]
[1643804246568,0.27961654,38665.0,38661.0,0.00149516]
[1643804246768,0.27961654,38665.0,38658.0,0.00011548]
[1643804246967,0.27961654,38665.0,38661.0,0.00149516]
[1643804247768,0.24955318,38664.0,38661.0,0.00149516]
[1643804247969,0.27961654,38665.0,38659.0,0.22608997]
[1643804248170,0.26628914,38664.0,38661.0,0.00149516]
[1643804248769,0.31628914,38664.0,38661.0,0.00149516]
[1643804249070,0.31628914,38664.0,38656.0,0.00011548]
[1643804249268,0.25505744,38657.0,38656.0,0.00011548]
[1643804249468,0.22096644,38661.0,38655.0,0.00598157]
[1643804249668,0.05,38660.0,38655.0,0.00598157]
[1643804250321,0.05,38664.0,38650.0,0.00011548]
[1643804250521,0.05,38664.0,38656.0,0.00149527]
[1643804250723,0.21066769,38660.0,38656.0,0.00149527]
[1643804251122,0.26066769,38660.0,38656.0,0.00161075]
[1643804251623,0.26066769,38660.0,38656.0,0.00011548]
[1643804251823,0.05,38660.0,38656.0,0.00149526]
[1643804252222,0.05,38662.0,38656.0,0.00149526]
[1643804252726,0.05,38664.0,38651.0,0.25796799]
[1643804252924,0.27593472,38660.0,38657.0,0.00149524]
[1643804253122,0.32593472,38660.0,38657.0,0.00149524]
[1643804253970,0.32593472,38660.0,38652.0,0.02072651]
[1643804254171,0.32593472,38660.0,38657.0,0.00149525]
[1643804254968,0.32583827,38660.0,38657.0,0.00149525]
[1643804255169,0.32583827,38660.0,38653.0,0.00011552]
[1643804255373,0.32583827,38660.0,38657.0,0.00149525]
[1643804256370,0.32583827,38660.0,38656.0,0.00011552]
[1643804256570,0.32583827,38660.0,38657.0,0.00077973]
[1643804256770,0.25680533,38659.0,38657.0,0.00077973]
[1643804257070,0.32583827,38660.0,38657.0,0.00077973]
[1643804257270,0.24911831,38659.0,38657.0,0.00077973]
[1643804257470,0.32583827,38660.0,38657.0,0.00077973]
[1643804257719,0.32583827,38660.0,38656.0,0.00149653]
[1643804258719,0.25158184,38659.0,38653.0,0.28059213]
[1643804258921,0.32583827,38660.0,38656.0,0.00149653]
[1643804259220,0.2519237,38659.0,38656.0,0.00149653]
[1643804259419,0.32583827,38660.0,38656.0,0.00149653]
[1643804259621,0.30731161,38659.0,38656.0,0.00149653]
[1643804260021,0.32583827,38660.0,38654.0,0.00011552]
[1643804260222,0.32583827,38660.0,38656.0,0.00149654]
[1643804261123,0.32583827,38660.0,38654.0,0.00011552]
[1643804261124,0.2606731,38659.0,38654.0,0.00011552]
[1643804261377,0.32583827,38660.0,38656.0,0.00134739]
[1643804261769,0.25612745,38659.0,38656.0,0.00134739]
[1643804261969,0.32583827,38660.0,38656.0,0.00134739]
[1643804262169,0.04990355,38660.0,38656.0,0.00134739]
[1643804262371,0.04990355,38660.0,38654.0,0.00011552]
[1643804262571,0.04990355,38660.0,38656.0,0.00134739]
[1643804262771,0.29960037,38659.0,38656.0,0.00134739]
[1643804262975,0.05,38659.0,38656.0,0.00134739]
[1643804263173,0.05,38660.0,38656.0,0.00134739]
[1643804263471,0.24886084,38659.0,38656.0,0.00134739]
[1643804263672,0.24886084,38659.0,38651.0,0.00011552]
[1643804263673,0.28753105,38661.0,38651.0,0.00011552]
[1643804263873,0.24034496,38658.0,38656.0,0.00134739]
[1643804264072,0.26153787,38657.0,38656.0,0.00134739]
[1643804264872,0.24034496,38658.0,38652.0,0.00011552]
[1643804265117,0.24034496,38658.0,38655.0,0.00134742]
[1643804265720,0.39204496,38658.0,38655.0,0.00134742]
[1643804265919,0.39204496,38658.0,38652.0,0.00011552]
[1643804266119,0.39204496,38658.0,38655.0,0.0013725]
[1643804266120,0.35673296,38658.0,38655.0,0.0013725]
[1643804266319,0.40673296,38658.0,38655.0,0.0013725]
[1643804266720,0.65488198,38656.0,38655.0,0.0013725]
[1643804266919,0.70658198,38656.0,38655.0,0.0013725]
[1643804267122,0.4017,38656.0,38650.0,0.00011552]
[1643804267320,0.29382598,38652.0,38648.0,0.00560643]
[1643804267522,0.4517,38656.0,38648.0,0.00560643]
[1643804268321,0.4517,38656.0,38648.0,0.00011552]
[1643804268522,0.30273057,38652.0,38650.0,0.00137259]
[1643804268721,0.05,38651.0,38650.0,0.00137259]
[1643804269374,0.65343758,38651.0,38650.0,0.00137259]
[1643804269571,1.13077787,38651.0,38645.0,0.00011552]
[1643804269771,0.2514708,38651.0,38649.0,0.00077988]
[1643804269973,0.35273057,38652.0,38649.0,0.00077988]
[1643804270779,0.23332073,38650.0,38644.0,0.00011552]
[1643804270977,0.23332073,38650.0,38643.0,0.22134328]
[1643804271174,0.28332073,38650.0,38643.0,0.22134328]
[1643804271377,0.24932317,38649.0,38643.0,0.22134328]
[1643804271576,0.28332073,38650.0,38643.0,0.00312]
[1643804271980,0.24955189,38649.0,38642.0,0.00011552]
[1643804272176,0.28332073,38650.0,38645.0,0.00077996]
[1643804272622,0.064697,38654.0,38645.0,0.00077996]
[1643804272623,0.064697,38654.0,38645.0,0.20388763]
[1643804272827,0.345792,38656.0,38646.0,0.13380086]
[1643804272828,0.064692,38656.0,38646.0,0.13380086]
[1643804273028,0.3667,38664.0,38647.0,0.348881]
[1643804273225,0.3667,38664.0,38649.0,0.064669]
[1643804273429,0.3667,38664.0,38650.0,0.3064336]
[1643804273628,0.2703508,38662.0,38653.0,0.6466]
[1643804273828,0.2703508,38662.0,38656.0,2.54220824]
[1643804274028,0.2703508,38662.0,38657.0,0.0517]
[1643804274628,0.2703508,38662.0,38658.0,0.21068772]
[1643804274834,0.2703508,38662.0,38659.0,0.0517]
[1643804274835,0.50576729,38661.0,38659.0,0.0517]
[1643804275031,0.221767,38661.0,38659.0,0.0517]
[1643804276228,0.05,38660.0,38659.0,0.0517]
[1643804277676,0.05,38660.0,38658.0,0.00138117]
[1643804278076,0.05,38660.0,38653.0,0.00011552]
[1643804278275,0.05,38660.0,38657.0,0.00138118]
[1643804279277,0.05,38660.0,38653.0,0.00011552]
[1643804279478,0.05,38660.0,38657.0,0.0013812]
[1643804280319,0.05,38660.0,38653.0,0.25484912]
[1643804280520,0.25020129,38656.0,38653.0,0.25484912]
[1643804280922,0.05,38660.0,38653.0,0.25484912]
[1643804281724,0.05,38660.0,38655.0,0.001198]
[1643804281924,0.51720184,38662.0,38655.0,0.001198]
[1643804282727,0.25472389,38659.0,38650.0,0.00011552]
[1643804282927,0.25472389,38659.0,38657.0,0.00119797]
[1643804283128,0.47703309,38659.0,38657.0,0.00119797]
[1643804283327,0.25472389,38659.0,38657.0,0.00119797]
[1643804283982,0.25472389,38659.0,38655.0,0.00011552]
[1643804284180,0.25472389,38659.0,38656.0,0.00119797]
[1643804284981,0.08870907,38658.0,38656.0,0.00119797]
[1643804285180,0.08870907,38658.0,38654.0,0.00011552]
[1643804285379,0.08870907,38658.0,38655.0,0.00124436]
[1643804286082,0.25472389,38659.0,38655.0,0.00124436]
[1643804286490,0.25472389,38659.0,38654.0,0.00011552]
[1643804286685,0.25472389,38659.0,38655.0,0.00064496]
[1643804288526,0.1196,38667.0,38655.0,0.00064496]
[1643804288722,0.1196,38667.0,38654.0,0.22403457]
[1643804288723,0.17571644,38666.0,38654.0,0.22403457]
[1643804289026,0.21612453,38664.0,38660.0,0.28164354]
[1643804289220,0.31612453,38664.0,38660.0,0.28164354]
[1643804289421,0.31612453,38664.0,38660.0,0.00011552]
[1643804289621,0.29526142,38661.0,38660.0,0.00011552]
[1643804290021,0.05,38660.0,38654.0,0.00011552]
[1643804290222,0.05,38660.0,38659.0,0.00141174]
[1643804290822,0.33110288,38662.0,38659.0,0.00141174]
[1643804291223,0.33110288,38662.0,38658.0,0.00011552]
[1643804291475,0.33110288,38662.0,38659.0,0.00141174]
[1643804291476,0.31997494,38661.0,38659.0,0.00141174]
[1643804292576,0.31997494,38661.0,38658.0,0.00139662]
[1643804292776,0.31997494,38661.0,38658.0,0.0012811]
[1643804293578,0.31997494,38661.0,38657.0,0.26150934]
[1643804293877,0.31997494,38661.0,38658.0,0.00119483]
[1643804294078,0.31997494,38661.0,38658.0,0.00131035]
[1643804294881,0.31997494,38661.0,38658.0,0.00011552]
[1643804295124,0.31997494,38661.0,38658.0,0.00119483]
[1643804295524,0.31997494,38661.0,38658.0,0.00131035]
[1643804295923,0.31997494,38661.0,38658.0,0.00011552]
[1643804296123,0.31997494,38661.0,38658.0,0.0012188]
[1643804296826,0.31997494,38661.0,38658.0,0.00133432]
[1643804297225,0.31997494,38661.0,38658.0,0.00011552]
[1643804297425,0.31997494,38661.0,38658.0,0.00124321]
[1643804298026,0.31997494,38661.0,38658.0,0.00135873]
[1643804298426,0.31997494,38661.0,38658.0,0.00011552]
[1643804298627,0.31997494,38661.0,38658.0,0.00124321]
[1643804299372,0.31997494,38661.0,38658.0,0.00135873]
[1643804299668,0.31997494,38661.0,38658.0,0.00011552]
[1643804299869,0.31997494,38661.0,38658.0,0.00123918]
[1643804300469,0.31997494,38661.0,38658.0,0.0013547]
[1643804300870,0.33110288,38662.0,38658.0,0.00011552]
[1643804301069,0.33110288,38662.0,38658.0,0.00123373]
[1643804302070,0.36477626,38661.0,38656.0,0.00011552]
[1643804302270,0.36477626,38661.0,38658.0,0.00123373]
[1643804302730,0.36477626,38661.0,38658.0,0.23692335]
[1643804303231,0.36477626,38661.0,38658.0,0.23568962]
[1643804303431,0.36477626,38661.0,38658.0,0.23692403]
[1643804304331,0.36477626,38661.0,38658.0,0.23568962]
[1643804304536,0.36477626,38661.0,38658.0,0.2369251]
[1643804304731,0.36477626,38661.0,38658.0,0.00123548]
[1643804305633,0.36477626,38661.0,38654.0,0.22449458]
[1643804305835,0.36477626,38661.0,38658.0,0.00123548]
[1643804306389,0.36477626,38661.0,38658.0,0.001351]
[1643804306886,0.36477626,38661.0,38657.0,0.22299072]
[1643804306887,0.00038448,38658.0,38657.0,0.22299072]
[1643804311447,0.00038448,38658.0,38656.0,0.00127897]
[1643804311648,0.00038448,38658.0,38654.0,0.00011556]
[1643804311846,0.00038448,38658.0,38653.0,0.24442344]
[1643804311847,0.00038448,38658.0,38656.0,0.0012692]
[1643804312547,0.00038448,38658.0,38657.0,0.24518178]
[1643804316475,0.25038448,38658.0,38654.0,0.00011556]
[1643804316674,0.25038448,38658.0,38656.0,0.00127139]
[1643804316874,0.30038448,38658.0,38656.0,0.00127139]
[1643804317720,0.30038448,38658.0,38657.0,0.26394286]
[1643804318621,0.30038448,38658.0,38655.0,0.00127141]
[1643804318821,0.30038448,38658.0,38654.0,0.00011556]
[1643804319020,0.30038448,38658.0,38656.0,0.0012709]
[1643804319821,0.56063472,38658.0,38656.0,0.0012709]
[1643804320125,0.56063472,38658.0,38654.0,0.25184656]
[1643804320324,0.2612525,38656.0,38655.0,0.00127092]
[1643804320723,0.3112525,38656.0,38655.0,0.00127092]
[1643804321127,0.3112525,38656.0,38654.0,0.251731]
[1643804321381,0.3112525,38656.0,38654.0,0.00121464]
[1643804322374,0.3112525,38656.0,38652.0,0.25673062]
[1643804322575,0.3112525,38656.0,38653.0,0.00121471]
[1643804323176,0.3112525,38656.0,38653.0,0.00133027]
[1643804323580,0.3112525,38656.0,38653.0,0.00011556]
[1643804323777,0.05,38656.0,38653.0,0.22310396]
[1643804323977,0.05,38656.0,38653.0,0.22963133]
[1643804324180,0.00038448,38658.0,38653.0,0.22963133]
[1643804324378,0.00038448,38658.0,38653.0,0.22974689]
[1643804324778,0.00038448,38658.0,38653.0,0.22853217]
[1643804324980,0.30717375,38658.0,38654.0,0.0012147]
[1643804325221,0.35649876,38658.0,38654.0,0.0012147]
[1643804326023,0.35649876,38658.0,38653.0,0.00011556]
[1643804326222,0.35649876,38658.0,38654.0,0.00124661]
[1643804327226,0.35649876,38658.0,38653.0,0.21958289]
[1643804327426,0.35649876,38658.0,38654.0,0.00124661]
[1643804328726,0.064678,38657.0,38654.0,0.00124661]
[1643804329570,0.064678,38657.0,38652.0,0.25661506]
[1643804329874,0.064678,38657.0,38654.0,0.00123733]
[1643804330776,0.064678,38657.0,38652.0,0.25661506]
[1643804330971,0.064678,38657.0,38654.0,0.00123733]
[1643804331973,0.064678,38657.0,38652.0,0.25661506]
[1643804332173,0.064678,38657.0,38654.0,0.00123733]
[1643804333225,0.064678,38657.0,38652.0,0.25661506]
[1643804333426,0.064678,38657.0,38654.0,0.00123964]
[1643804334322,0.064678,38657.0,38652.0,0.25661506]
[1643804334523,0.064678,38657.0,38653.0,0.22297333]
[1643804334723,0.064678,38657.0,38654.0,0.00123964]
[1643804335524,0.064678,38657.0,38652.0,0.25661506]
[1643804335525,0.064678,38657.0,38651.0,0.02134923]
[1643804335930,0.064678,38657.0,38654.0,0.00123964]
[1643804336775,0.064678,38657.0,38650.0,0.00011556]
[1643804337075,0.064678,38657.0,38654.0,0.00150222]
[1643804338075,0.064678,38657.0,38649.0,0.00011556]
[1643804338276,0.064678,38657.0,38654.0,0.00150222]
[1643804339276,0.064678,38657.0,38649.0,0.00011556]
[1643804339476,0.064678,38657.0,38654.0,0.00150222]
[1643804340522,0.064678,38657.0,38649.0,0.00011556]
[1643804340723,0.064678,38657.0,38654.0,0.00150222]
[1643804341726,0.064678,38657.0,38649.0,0.00011556]
[1643804341727,0.064689,38652.0,38649.0,0.00011556]
[1643804341923,0.064689,38652.0,38647.0,0.124]
[1643804341924,0.25514698,38650.0,38648.0,0.00612535]
[1643804342125,0.30514698,38650.0,38648.0,0.00612535]
[1643804342525,0.30514698,38650.0,38648.0,0.00600979]
[1643804342926,0.30514698,38650.0,38647.0,0.00150235]
[1643804343126,0.29848362,38648.0,38647.0,0.00150235]
[1643804343629,0.34848362,38648.0,38647.0,0.00150235]
[1643804343884,0.39848362,38648.0,38647.0,0.00150235]
[1643804344081,0.1,38648.0,38644.0,0.00011556]
[1643804344281,0.05,38648.0,38646.0,0.00150238]
[1643804344582,0.10013309,38648.0,38646.0,0.00150238]
[1643804344787,0.26482309,38648.0,38646.0,0.00150238]
[1643804345183,0.32619969,38647.0,38643.0,0.00011556]
[1643804345382,0.32619969,38647.0,38645.0,0.00150239]
[1643804346385,0.39090258,38647.0,38643.0,0.00011556]
[1643804346586,0.064702,38646.0,38644.0,0.00150241]
[1643804346785,0.114702,38646.0,38644.0,0.00150241]
[1643804346987,0.41397447,38646.0,38644.0,0.00150241]
[1643804347385,0.24924171,38645.0,38644.0,0.00150241]
[1643804347629,0.24924171,38645.0,38639.0,0.00011556]
[1643804347630,0.85260801,38645.0,38639.0,0.00011556]
[1643804347827,0.064703,38642.0,38638.0,0.01870985]
[1643804348228,0.114703,38642.0,38638.0,0.01870985]
[1643804348528,0.114703,38642.0,38638.0,0.01882541]
[1643804348732,0.114703,38642.0,38638.0,0.00011556]
[1643804348929,0.114703,38642.0,38638.0,0.00150254]
[1643804348930,0.41170365,38642.0,38638.0,0.00150254]
[1643804349127,0.41170365,38642.0,38638.0,0.35150254]
[1643804349332,0.05,38639.0,38638.0,0.00150254]
[1643804349631,0.04989423,38639.0,38638.0,0.00150254]
[1643804349829,0.05,38639.0,38638.0,0.00150254]
[1643804350028,0.05,38639.0,38633.0,0.00011556]
[1643804350229,0.14847438,38641.0,38637.0,0.00150257]
[1643804350431,0.53237128,38640.0,38637.0,0.00150257]
[1643804350631,0.59708728,38640.0,38637.0,0.00150257]
[1643804350829,0.53237128,38640.0,38637.0,0.00150257]
[1643804351030,0.59708445,38640.0,38637.0,0.00150257]
[1643804351234,0.129427,38639.0,38633.0,0.00011556]
[1643804351478,0.05,38638.0,38637.0,0.0011841]
[1643804352375,0.88424576,38638.0,38632.0,0.00011556]
[1643804352576,0.18115943,38637.0,38636.0,0.00118411]
[1643804352776,0.29588743,38637.0,38636.0,0.00118411]
[1643804352977,0.57170481,38637.0,38636.0,0.00118411]
[1643804353180,0.57170481,38637.0,38611.0,0.12945047]
[1643804353181,0.43227347,38617.0,38611.0,0.12945047]
[1643804353386,0.79999268,38636.0,38610.0,0.0092]
[1643804353387,0.0517,38619.0,38610.0,0.0092]
[1643804353584,0.05,38617.0,38611.0,0.00011568]
[1643804353980,0.22145177,38615.0,38611.0,0.26827678]
[1643804354181,0.70970368,38619.0,38611.0,0.2681611]
[1643804354381,0.43573786,38619.0,38611.0,0.2681611]
[1643804354578,0.48573786,38619.0,38611.0,0.2681611]
[1643804354878,0.05,38618.0,38611.0,0.2681611]
[1643804355122,0.05,38618.0,38613.0,0.00076601]
[1643804356121,0.05,38618.0,38612.0,0.00011568]
[1643804356326,0.05,38618.0,38614.0,0.00149553]
[1643804357223,0.1,38619.0,38612.0,0.00011568]
[1643804357425,0.29887427,38618.0,38614.0,0.00149552]
[1643804357825,0.05,38617.0,38614.0,0.00149552]
[1643804358428,0.05,38617.0,38608.0,0.6808775]
[1643804358629,0.27016769,38616.0,38614.0,0.00149553]
[1643804359777,0.26592095,38614.0,38613.0,0.00134744]
[1643804359977,0.26092095,38614.0,38613.0,0.00134744]
[1643804360180,0.31092095,38614.0,38613.0,0.00134744]
[1643804360379,0.65117853,38614.0,38613.0,0.00134744]
[1643804360579,0.60117853,38614.0,38613.0,0.00134744]